fUST/lending_fUST_20240701
["ID","MTS","AMOUNT","RATE_DAILY","PERIOD"]
[330824922,1719844247063,-5452.5,0.00017113,2]
[330824925,1719844247072,-813.4,0.00017114,2]
[330824926,1719844247081,-20000.0,0.00017343,2]
[330824928,1719844247090,-3000.0,0.000175,2]
[330824931,1719844247100,-160.0,0.00017518,3]
[330824932,1719844247110,-1860.79156834,0.00017531,2]
[330824934,1719844247119,-155.0,0.0001759,2]
[330824936,1719844247129,-1310.11450043,0.000176,2]
[330824938,1719844247139,-500.0,0.00017624,2]
[330824940,1719844247148,-500.0,0.00017625,2]
[330824943,1719844247158,-500.0,0.00017625,2]
[330824944,1719844247168,-527.55,0.00017627,2]
[330824946,1719844247177,-1067.34,0.00017627,2]
[330824948,1719844247186,-500.0,0.00017627,2]
[330824950,1719844247195,-540.01,0.00017627,2]
[330824963,1719844247305,-1085.54,0.00017627,2]
[330824965,1719844247317,-600.53,0.00017627,2]
[330824967,1719844247326,-498.30158285,0.00017627,2]
[330824970,1719844247336,-500.0,0.00017628,2]
[330824972,1719844247345,-4275.34,0.00017628,2]
[330824973,1719844247355,-500.0,0.00017629,2]
[330824975,1719844247364,-924.22,0.00017629,2]
[330824977,1719844247373,-500.0,0.00017629,2]
[330824979,1719844247382,-767.93,0.00017629,2]
[330824981,1719844247391,-500.0,0.00017629,2]
[330824983,1719844247400,-500.0,0.00017629,2]
[330824985,1719844247410,-500.0,0.00017629,2]
[330824987,1719844247419,-262.2065309,0.00017629,2]
[330824989,1719844247429,-500.0,0.00017629,2]
[330824991,1719844247438,-500.0,0.00017629,2]
[330824993,1719844247447,-500.0,0.00017629,2]
[330824995,1719844247456,-500.0,0.00017629,2]
[330824998,1719844247466,-787.78,0.00017629,2]
[330825000,1719844247476,-764.17,0.00017629,2]
[330825002,1719844247486,-545.76,0.00017629,2]
[330825003,1719844247495,-3687.93,0.00017629,2]
[330825005,1719844247505,-569.83,0.00017629,2]
[330825008,1719844247516,-500.0,0.00017629,2]
[330825009,1719844247528,-99.47963451,0.00017629,2]
[330825040,1719844247810,-500.0,0.00015436,2]
[330825042,1719844247820,-500.0,0.00015437,2]
[330825043,1719844247830,-500.0,0.00015984,2]
[330825045,1719844247840,-500.0,0.00016532,2]
[330825047,1719844247849,-400.52036549,0.00017629,2]
[330825049,1719844247858,-1005.8,0.00017629,2]
[330825052,1719844247871,-500.0,0.00017629,2]
[330825054,1719844247880,-524.35,0.00017629,2]
[330825055,1719844247890,-500.0,0.00017629,2]
[330825058,1719844247899,-678.69,0.00017629,2]
[330825059,1719844247911,-500.0,0.00017629,2]
[330825062,1719844247921,-500.0,0.00017632,2]
[330825063,1719844247930,-500.0,0.00017632,2]
[330825065,1719844247939,-500.0,0.00017632,2]
[330825067,1719844247950,-500.0,0.00017632,2]
[330825069,1719844247959,-645.34048163,0.00017632,2]
[330825071,1719844247970,-500.0,0.00017632,2]
[330825072,1719844247979,-1941.02,0.00017632,2]
[330825073,1719844247988,-500.0,0.00017632,2]
[330825074,1719844247997,-612.21,0.00017632,2]
[330825075,1719844248006,-500.0,0.00017632,2]
[330825076,1719844248016,-500.0,0.00017632,2]
[330825077,1719844248025,-500.0,0.00017632,2]
[330825078,1719844248035,-562.93,0.00017632,2]
[330825079,1719844248044,-517.7353203,0.00017632,2]
[330825080,1719844248054,-313.47753864,0.00017632,2]
[330825081,1719844248063,-500.0,0.00017634,2]
[330825082,1719844248071,-500.0,0.00017634,2]
[330825083,1719844248081,-500.0,0.00017635,2]
[330825084,1719844248092,-500.0,0.00017635,2]
[330825085,1719844248101,-805.44,0.00017635,2]
[330825086,1719844248110,-500.0,0.00017635,2]
[330825087,1719844248120,-3755.35,0.00017635,2]
[330825088,1719844248129,-500.0,0.00017635,2]
[330825089,1719844248138,-757.01,0.00017635,2]
[330825090,1719844248147,-500.0,0.00017636,2]
[330825091,1719844248156,-500.0,0.00017639,2]
[330825092,1719844248165,-788.08,0.00017639,2]
[330825093,1719844248174,-500.0,0.00017639,2]
[330825094,1719844248183,-509.96776029,0.0001764,2]
[330825095,1719844248191,-500.0,0.0001764,2]
[330825096,1719844248200,-2001.61,0.0001764,2]
[330825097,1719844248210,-500.0,0.0001764,2]
[330825098,1719844248219,-500.0,0.0001764,2]
[330825099,1719844248228,-173.83079871,0.0001764,2]
[330825100,1719844248237,-535.7,0.0001764,2]
[330825101,1719844248246,-500.0,0.00017641,2]
[330825102,1719844248254,-461.58258125,0.00017641,2]
[330825103,1719844248263,-491.74582358,0.00017641,2]
[330825104,1719844248272,-500.0,0.00017641,2]
[330825105,1719844248281,-797.89,0.00017641,2]
[330825106,1719844248290,-500.0,0.00017641,2]
[330825107,1719844248299,-500.0,0.00017641,2]
[330825108,1719844248308,-500.0,0.00017641,2]
[330825109,1719844248317,-563.68,0.00017641,2]
[330825110,1719844248326,-500.0,0.00017641,2]
[330825111,1719844248334,-500.0,0.00017641,2]
[330825112,1719844248344,-500.0,0.00017641,2]
[330825113,1719844248354,-636.01,0.00017641,2]
[330825114,1719844248363,-500.0,0.00017658,2]
[330825115,1719844248372,-574.46,0.00017658,2]
[330825116,1719844248381,-500.0,0.00017658,2]
[330825117,1719844248391,-606.33,0.00017658,2]
[330825118,1719844248400,-500.0,0.00017658,2]
[330825119,1719844248409,-500.0,0.00017658,2]
[330825120,1719844248418,-500.0,0.00017658,2]
[330825121,1719844248427,-5757.87,0.00017659,2]
[330825122,1719844248437,-500.0,0.00017659,2]
[330825123,1719844248446,-2085.94,0.00017661,2]
[330825124,1719844248455,-613.62,0.00017661,2]
[330825125,1719844248465,-3151.17,0.00017661,2]
[330825126,1719844248474,-594.09,0.00017661,2]
[330825127,1719844248483,-500.0,0.00017661,2]
[330825128,1719844248492,-503.67,0.00017661,2]
[330825129,1719844248502,-500.0,0.00017661,2]
[330825130,1719844248513,-5452.5,0.00017661,2]
[330825131,1719844248527,-813.4,0.00017662,2]
[330825132,1719844248537,-160.0,0.00017668,4]
[330825133,1719844248546,-151.0,0.00017707,2]
[330825134,1719844248556,-1103.46935453,0.00017808,2]
[330825135,1719844248567,-1103.46935453,0.00017808,2]
[330825136,1719844248576,-1103.46935453,0.00017808,2]
[330825137,1719844248586,-1103.46935453,0.00017808,2]
[330825138,1719844248596,-1103.46935453,0.00017808,2]
[330825139,1719844248605,-1103.46935453,0.00017808,2]
[330825140,1719844248615,-1103.46935453,0.00017808,2]
[330825141,1719844248625,-1103.46935453,0.00017808,2]
[330825142,1719844248634,-1103.46935453,0.00017808,2]
[330825143,1719844248643,-1103.46935453,0.00017808,2]
[330825144,1719844248653,-1103.46935453,0.00017808,2]
[330825145,1719844248663,-1103.46935453,0.00017808,2]
[330825146,1719844248672,-1103.46935453,0.00017808,2]
[330825147,1719844248682,-1103.46935453,0.00017808,2]
[330825148,1719844248692,-1103.46935453,0.00017808,2]
[330825149,1719844248702,-1103.46935453,0.00017808,2]
[330825150,1719844248711,-1103.46935453,0.00017808,2]
[330825151,1719844248721,-1103.46935453,0.00017808,2]
[330825152,1719844248731,-1103.46935453,0.00017808,2]
[330825153,1719844248741,-1103.46935453,0.00017808,2]
[330825154,1719844248751,-1103.46935453,0.00017808,2]
[330825155,1719844248760,-1103.46935453,0.00017808,2]
[330825156,1719844248769,-1103.46935453,0.00017808,2]
[330825157,1719844248779,-1103.46935453,0.00017808,2]
[330825158,1719844248788,-1103.46935453,0.00017808,2]
[330825159,1719844248797,-1103.46935453,0.00017808,2]
[330825160,1719844248806,-1103.46935453,0.00017808,2]
[330825161,1719844248816,-1103.46935453,0.00017808,2]
[330825162,1719844248825,-1103.46935453,0.00017808,2]
[330825163,1719844248834,-1103.46935453,0.00017808,2]
[330825164,1719844248844,-1103.46935453,0.00017808,2]
[330825165,1719844248854,-1103.46935453,0.00017808,2]
[330825166,1719844248865,-1103.46935453,0.00017808,2]
[330825167,1719844248875,-1103.46935453,0.00017808,2]
[330825168,1719844248884,-1103.46935453,0.00017808,2]
[330825169,1719844248895,-1103.46935453,0.00017808,2]
[330825170,1719844248906,-1103.46935453,0.00017808,2]
[330825171,1719844248916,-1103.46935453,0.00017808,2]
[330825172,1719844248926,-1103.46935453,0.00017808,2]
[330825173,1719844248936,-1103.46935453,0.00017808,2]
[330825174,1719844248945,-1103.46935453,0.00017808,2]
[330825175,1719844248955,-1103.46935453,0.00017808,2]
[330825176,1719844248964,-1103.46935453,0.00017808,2]
[330825177,1719844248974,-1103.46935453,0.00017808,2]
[330825178,1719844248983,-1103.46935453,0.00017808,2]
[330825179,1719844248993,-1103.46935453,0.00017808,2]
[330825180,1719844249002,-1103.46935453,0.00017808,2]
[330825181,1719844249010,-1103.46935453,0.00017808,2]
[330825182,1719844249020,-1103.46935453,0.00017808,2]
[330825183,1719844249029,-1103.46935453,0.00017808,2]
[330825184,1719844249040,-8141.3527683,0.00017808,2]
[330825185,1719844249059,-2475.54070932,0.00017808,2]
[330825186,1719844249069,-10616.89347762,0.00017808,2]
[330825188,1719844249079,-10616.89347762,0.00017808,2]
[330825189,1719844249089,-10616.89347762,0.00017808,2]
[330825190,1719844249098,-10616.89347762,0.00017808,2]
[330825191,1719844249107,-10616.89347762,0.00017808,2]
[330825192,1719844249117,-10616.89347762,0.00017808,2]
[330825193,1719844249126,-10616.89347762,0.00017808,2]
[330825194,1719844249136,-10616.89347762,0.00017808,2]
[330825195,1719844249145,-10616.89347762,0.00017808,2]
[330825196,1719844249154,-10616.89347762,0.00017808,2]
[330825197,1719844249164,-10616.89347762,0.00017808,2]
[330825198,1719844249173,-10616.89347762,0.00017808,2]
[330825199,1719844249183,-10616.89347762,0.00017808,2]
[330825200,1719844249192,-3267.29516162,0.00017808,2]
[330825201,1719844249224,-6985.61200722,0.00017808,2]
[330825202,1719844249560,-500.0,0.00015431,2]
[330825203,1719844249570,-500.0,0.00015431,2]
[330825204,1719844249579,-500.0,0.00015431,2]
[330825205,1719844249588,-306.64991586,0.00015431,2]
[330825206,1719844249598,-236.36564553,0.00015431,2]
[330825207,1719844249608,-407.19245986,0.00015431,2]
[330825208,1719844249620,-500.0,0.00015431,2]
[330825209,1719844249629,-500.0,0.00015431,2]
[330825210,1719844249639,-500.0,0.00015431,2]
[330825211,1719844249649,-500.0,0.00015431,2]
[330825216,1719844249776,-500.0,0.00015431,2]
[330825217,1719844249787,-500.0,0.00015431,2]
[330825218,1719844249797,-500.0,0.00015431,2]
[330825219,1719844249807,-217.96084738,0.00015431,2]
[330825220,1719844249817,-261.93938859,0.00015431,2]
[330825221,1719844249826,-500.0,0.00015431,2]
[330825222,1719844249835,-500.0,0.00015431,2]
[330825223,1719844249845,-500.0,0.00015431,2]
[330825224,1719844249855,-261.53691647,0.00015431,2]
[330825225,1719844249867,-500.0,0.00015431,2]
[330825226,1719844249876,-293.1302778,0.00016,2]
[330825227,1719844249885,-261.6405563,0.00016,2]
[330825228,1719844249895,-363.98630878,0.00017808,2]
[330825229,1719844249904,-10616.89347762,0.00017808,2]
[330825230,1719844249915,-10616.89347762,0.00017808,2]
[330825231,1719844249924,-10616.89347762,0.00017808,2]
[330825232,1719844249934,-10616.89347762,0.00017808,2]
[330825233,1719844249943,-10616.89347762,0.00017808,2]
[330825234,1719844249953,-10616.89347762,0.00017808,2]
[330825235,1719844249963,-10616.89347762,0.00017808,2]
[330825236,1719844249972,-10616.89347762,0.00017808,2]
[330825237,1719844249981,-10616.89347762,0.00017808,2]
[330825238,1719844249990,-10616.89347762,0.00017808,2]
[330825239,1719844250000,-10616.89347762,0.00017808,2]
[330825240,1719844250009,-10616.89347762,0.00017808,2]
[330825241,1719844250019,-10616.89347762,0.00017808,2]
[330825242,1719844250029,-10616.89347762,0.00017808,2]
[330825243,1719844250038,-10616.89347762,0.00017808,2]
[330825244,1719844250047,-10653.75769109,0.00017808,2]
[330825245,1719844250056,-10653.75769109,0.00017808,2]
[330825246,1719844250065,-10653.75769109,0.00017808,2]
[330825247,1719844250076,-10653.75769109,0.00017808,2]
[330825248,1719844250085,-10653.75769109,0.00017808,2]
[330825249,1719844250094,-10653.75769109,0.00017808,2]
[330825250,1719844250104,-10653.75769109,0.00017808,2]
[330825251,1719844250115,-10653.75769105,0.00017808,2]
[330825252,1719844250124,-160.0,0.00017819,5]
[330825253,1719844250133,-151.0,0.00017866,2]
[330825254,1719844250143,-150.0,0.00017929,2]
[330825255,1719844250152,-150.0,0.00017942,2]
[330825256,1719844250162,-150.0,0.00017942,2]
[330825257,1719844250171,-150.0,0.00017944,2]
[330825258,1719844250181,-150.0,0.00017944,2]
[330825259,1719844250190,-160.0,0.0001797,6]
[330825260,1719844250200,-104606.91003045,0.00018,2]
[330825261,1719844250212,-19891.03468,0.00018,2]
[330825262,1719844250938,1500.0,0.00014999,2]
[330825263,1719844325729,155.53998677,0.00014999,2]
[330825264,1719844394091,5937.551392,0.000154,30]
[330825266,1719844487160,1500.0,0.00014999,2]
[330825267,1719844510694,2072.34001445,0.00014999,2]
[330825276,1719844654691,1500.0,0.00014999,2]
[330825281,1719844774292,222.0,0.00025,120]
[330825283,1719844856177,1500.0,0.00014999,2]
[330825284,1719844993937,150.0,0.000154,30]
[330825373,1719845439377,-407.56080573,0.00015331,2]
[330825374,1719845439388,-997.73355803,0.00015333,2]
[330825375,1719845439400,-1640.40079236,0.00015333,2]
[330825389,1719845442760,-3589.77609983,0.00015333,2]
[330825390,1719845442770,-300.0,0.00015429,2]
[330825391,1719845442780,-500.0,0.00015429,2]
[330825392,1719845442789,-500.0,0.00015429,2]
[330825393,1719845442799,-500.0,0.00015429,2]
[330825394,1719845442809,-500.0,0.00015429,2]
[330825395,1719845442818,-440.83656593,0.00015429,2]
[330825396,1719845442827,-500.0,0.00015429,2]
[330825397,1719845442837,-500.0,0.00015429,2]
[330825398,1719845442846,-500.0,0.00015429,2]
[330825399,1719845442856,-458.90018761,0.00015429,2]
[330825400,1719845442865,-457.77814128,0.00015429,2]
[330825401,1719845442876,-500.0,0.00015429,2]
[330825402,1719845442886,-500.0,0.00015429,2]
[330825403,1719845442901,-500.0,0.00015429,2]
[330825404,1719845442911,-500.0,0.00015429,2]
[330825405,1719845442920,-500.0,0.00015429,2]
[330825406,1719845442930,-500.0,0.00015429,2]
[330825407,1719845442939,-196.7894232,0.00015429,2]
[330825408,1719845442950,-557.41940727,0.0001543,2]
[330825409,1719845442961,-500.0,0.0001543,2]
[330825410,1719845442973,-500.0,0.0001543,2]
[330825411,1719845442984,-999.22,0.0001543,2]
[330825412,1719845442994,-500.0,0.0001543,2]
[330825413,1719845443005,-1000.0,0.0001543,2]
[330825414,1719845443015,-500.0,0.0001543,2]
[330825415,1719845443026,-500.0,0.0001543,2]
[330825416,1719845443036,-500.0,0.0001543,2]
[330825417,1719845443047,-460.68263836,0.0001543,2]
[330825418,1719845443057,-500.0,0.0001543,2]
[330825419,1719845443067,-500.0,0.0001543,2]
[330825420,1719845443077,-508.01,0.0001543,2]
[330825421,1719845443086,-500.0,0.0001543,2]
[330825422,1719845443096,-952.09,0.0001543,2]
[330825423,1719845443106,-500.0,0.0001543,2]
[330825424,1719845443115,-3641.0,0.0001543,2]
[330825425,1719845443124,-603.8,0.0001543,2]
[330825426,1719845443134,-500.0,0.00015431,2]
[330825427,1719845443146,-500.0,0.00015431,2]
[330825428,1719845443156,-500.0,0.00015431,2]
[330825429,1719845443166,-500.0,0.00015431,2]
[330825430,1719845443175,-500.0,0.00015431,2]
[330825431,1719845443184,-500.0,0.00015431,2]
[330825432,1719845443193,-500.0,0.00015431,2]
[330825433,1719845443203,-637.64,0.00015431,2]
[330825434,1719845443212,-500.0,0.00015431,2]
[330825435,1719845443222,-500.0,0.00015431,2]
[330825436,1719845443232,-500.0,0.00015431,2]
[330825437,1719845443241,-1536.64,0.00015431,2]
[330825438,1719845443251,-500.0,0.00015431,2]
[330825439,1719845443260,-500.0,0.00015431,2]
[330825440,1719845443270,-500.0,0.00015431,2]
[330825441,1719845443279,-541.55565344,0.00015431,2]
[330825442,1719845443289,-136.39156731,0.00015431,2]
[330825461,1719845446461,-0.00326002,0.00015429,2]
[330825464,1719845446472,-499.99673998,0.00015429,2]
[330825466,1719845446482,-500.0,0.00015429,2]
[330825468,1719845446491,-500.0,0.00015429,2]
[330825470,1719845446501,-242.98487019,0.00015429,2]
[330825472,1719845446511,-363.60843269,0.00015431,2]
[330825475,1719845446520,-789.87,0.00015431,2]
[330825477,1719845446529,-506.89200503,0.00015431,2]
[330825480,1719845446539,-500.0,0.00015431,2]
[330825482,1719845446548,-500.0,0.00015431,2]
[330825483,1719845446558,-501.54836843,0.00015431,2]
[330825484,1719845446567,-500.0,0.00015431,2]
[330825485,1719845446577,-590.41,0.00015431,2]
[330825486,1719845446586,-288.85706141,0.00015431,2]
[330825487,1719845446595,-500.0,0.00015431,2]
[330825488,1719845446604,-500.0,0.00015431,2]
[330825490,1719845446613,-676.73,0.00015431,2]
[330825492,1719845446623,-500.0,0.00015431,2]
[330825493,1719845446633,-500.0,0.00015431,2]
[330825494,1719845446644,-500.0,0.00015431,2]
[330825495,1719845446654,-1708.53,0.00015431,2]
[330825496,1719845446664,-500.0,0.00015431,2]
[330825497,1719845446673,-500.0,0.00015431,2]
[330825498,1719845446682,-500.0,0.00015431,2]
[330825499,1719845446692,-500.0,0.00015431,2]
[330825500,1719845446701,-500.0,0.00015431,2]
[330825501,1719845446710,-500.0,0.00015431,2]
[330825502,1719845446719,-500.0,0.00015431,2]
[330825503,1719845446729,-3384.64,0.00015431,2]
[330825504,1719845446738,-500.0,0.00015431,2]
[330825506,1719845446747,-500.0,0.00015431,2]
[330825508,1719845446756,-500.0,0.00015431,2]
[330825510,1719845446767,-703.09,0.00015431,2]
[330825512,1719845446776,-500.0,0.00015431,2]
[330825513,1719845446785,-500.0,0.00015431,2]
[330825514,1719845446795,-694.91,0.00015431,2]
[330825515,1719845446804,-2972.98,0.00015431,2]
[330825516,1719845446813,-500.0,0.00015431,2]
[330825517,1719845446822,-500.0,0.00015431,2]
[330825518,1719845446831,-3101.8,0.00015431,2]
[330825519,1719845446841,-1584.61,0.00015431,2]
[330825520,1719845446850,-500.0,0.00015431,2]
[330825521,1719845446859,-845.95,0.00015431,2]
[330825522,1719845446868,-500.0,0.00015431,2]
[330825523,1719845446877,-500.0,0.00015431,2]
[330825524,1719845446888,-500.0,0.00015431,2]
[330825525,1719845446900,-500.0,0.00015431,2]
[330825526,1719845446908,-500.0,0.00015431,2]
[330825527,1719845446917,-500.0,0.00015431,2]
[330825529,1719845446927,-500.0,0.00015431,2]
[330825531,1719845446937,-500.0,0.00015431,2]
[330825533,1719845446946,-537.3,0.00015431,2]
[330825534,1719845446956,-599.3,0.00015431,2]
[330825536,1719845446965,-500.0,0.00015432,2]
[330825538,1719845446977,-500.0,0.00015432,2]
[330825540,1719845446987,-500.0,0.00015432,2]
[330825541,1719845446996,-500.0,0.00015432,2]
[330825542,1719845447005,-500.0,0.00015432,2]
[330825543,1719845447015,-500.0,0.00015432,2]
[330825544,1719845447024,-500.0,0.00015433,2]
[330825545,1719845447034,-500.0,0.00015433,2]
[330825546,1719845447043,-623.9,0.00015433,2]
[330825547,1719845447053,-500.0,0.00015436,2]
[330825548,1719845447063,-500.0,0.00015437,2]
[330825549,1719845447181,-631.67,0.00015437,2]
[330825550,1719845447197,-249.77811291,0.00015437,2]
[330825551,1719845447207,-500.0,0.00015437,2]
[330825552,1719845447216,-500.0,0.00015437,2]
[330825553,1719845447225,-500.0,0.00015437,2]
[330825554,1719845447235,-500.0,0.00015437,2]
[330825555,1719845447245,-500.0,0.00015437,2]
[330825556,1719845447254,-503.51,0.00015437,2]
[330825557,1719845447263,-500.0,0.0001544,2]
[330825558,1719845447272,-500.0,0.0001544,2]
[330825559,1719845447282,-500.0,0.0001544,2]
[330825560,1719845447291,-500.0,0.0001544,2]
[330825561,1719845447301,-174.51105422,0.00015442,2]
[330825562,1719845447311,-500.0,0.00015442,2]
[330825563,1719845447320,-500.0,0.00015442,2]
[330825564,1719845447330,-515.38825421,0.00015442,2]
[330825565,1719845447340,-500.0,0.00015442,2]
[330825566,1719845447350,-591.98354517,0.00015442,2]
[330825567,1719845447359,-500.0,0.00015442,2]
[330825568,1719845447369,-322.0845278,0.00015442,2]
[330825569,1719845447378,-591.98354517,0.00015442,2]
[330825570,1719845447388,-500.0,0.00015442,2]
[330825571,1719845447400,-591.98354517,0.00015442,2]
[330825572,1719845447409,-558.23126448,0.00015442,2]
[330825573,1719845447418,-500.0,0.00015442,2]
[330825574,1719845447428,-591.98354517,0.00015442,2]
[330825575,1719845447438,-500.0,0.00015442,2]
[330825576,1719845447447,-500.0,0.00015442,2]
[330825577,1719845447457,-591.98354517,0.00015442,2]
[330825578,1719845447466,-500.0,0.00015442,2]
[330825579,1719845447475,-500.0,0.00015442,2]
[330825580,1719845447485,-591.98354517,0.00015442,2]
[330825581,1719845447494,-500.0,0.00015442,2]
[330825582,1719845447503,-591.98354517,0.00015442,2]
[330825583,1719845447513,-450.70820787,0.00015442,2]
[330825584,1719845447522,-591.98354517,0.00015442,2]
[330825585,1719845447531,-500.0,0.00015442,2]
[330825586,1719845447540,-591.98354517,0.00015442,2]
[330825587,1719845447549,-500.0,0.00015442,2]
[330825588,1719845447558,-591.98354517,0.00015442,2]
[330825589,1719845447567,-500.0,0.00015442,2]
[330825590,1719845447576,-591.98354517,0.00015442,2]
[330825591,1719845447585,-591.98354517,0.00015442,2]
[330825592,1719845447595,-500.0,0.00015442,2]
[330825593,1719845447604,-500.0,0.00015442,2]
[330825594,1719845447614,-591.98354517,0.00015442,2]
[330825595,1719845447624,-500.0,0.00015442,2]
[330825596,1719845447634,-591.98354517,0.00015442,2]
[330825597,1719845447645,-591.98354517,0.00015442,2]
[330825598,1719845447655,-500.0,0.00015442,2]
[330825599,1719845447664,-591.98354517,0.00015442,2]
[330825600,1719845447674,-500.0,0.00015442,2]
[330825601,1719845447683,-591.98354517,0.00015442,2]
[330825602,1719845447692,-591.98354517,0.00015442,2]
[330825603,1719845447701,-500.0,0.00015442,2]
[330825604,1719845447711,-500.0,0.00015442,2]
[330825605,1719845447720,-591.98354517,0.00015442,2]
[330825606,1719845447729,-591.98354517,0.00015442,2]
[330825607,1719845447739,-500.0,0.00015442,2]
[330825608,1719845447749,-591.98354517,0.00015442,2]
[330825609,1719845447759,-500.0,0.00015442,2]
[330825610,1719845447769,-591.98354517,0.00015442,2]
[330825611,1719845447778,-591.98354517,0.00015442,2]
[330825612,1719845447787,-591.98354517,0.00015442,2]
[330825613,1719845447796,-591.98354517,0.00015442,2]
[330825614,1719845447805,-591.98354517,0.00015442,2]
[330825615,1719845447814,-591.98354517,0.00015442,2]
[330825616,1719845447823,-591.98354517,0.00015442,2]
[330825617,1719845447833,-591.98354517,0.00015442,2]
[330825618,1719845447842,-591.98354517,0.00015442,2]
[330825619,1719845447851,-591.98354517,0.00015442,2]
[330825620,1719845447860,-591.98354517,0.00015442,2]
[330825621,1719845447870,-591.98354517,0.00015442,2]
[330825622,1719845447879,-591.98354517,0.00015442,2]
[330825623,1719845447889,-591.98354517,0.00015442,2]
[330825624,1719845447903,-591.98354517,0.00015442,2]
[330825625,1719845447913,-591.98354517,0.00015442,2]
[330825626,1719845447922,-591.98354517,0.00015442,2]
[330825627,1719845447931,-591.98354517,0.00015442,2]
[330825628,1719845447941,-591.98354517,0.00015442,2]
[330825629,1719845447950,-500.0,0.00015443,2]
[330825630,1719845447960,-500.0,0.00015443,2]
[330825631,1719845447969,-500.0,0.00015443,2]
[330825632,1719845447981,-500.0,0.00015443,2]
[330825633,1719845447990,-500.0,0.00015443,2]
[330825634,1719845448000,-500.0,0.00015443,2]
[330825635,1719845448009,-4558.32,0.00015444,2]
[330825636,1719845448018,-500.0,0.00015444,2]
[330825637,1719845448028,-500.0,0.00015447,2]
[330825638,1719845448037,-14031.00752035,0.00015461,2]
[330825639,1719845448047,-1651.37,0.00015467,2]
[330825640,1719845448056,-500.0,0.00015467,2]
[330825641,1719845448066,-2698.47,0.00015467,2]
[330825642,1719845448075,-500.0,0.00015467,2]
[330825643,1719845448084,-500.0,0.00015467,2]
[330825644,1719845448094,-500.0,0.00015467,2]
[330825645,1719845448103,-4316.56,0.00015467,2]
[330825646,1719845448112,-643.94,0.00015467,2]
[330825647,1719845448123,-6227.91045019,0.00015538,2]
[330825648,1719845448132,-979.609,0.00015722,2]
[330825649,1719845448141,-6227.91045019,0.00015744,2]
[330825650,1719845448152,-19381.26022362,0.00015948,2]
[330825651,1719845448161,-6227.91045019,0.00015949,2]
[330825652,1719845448172,-500.0,0.00015978,2]
[330825653,1719845448182,-999.22,0.00015978,2]
[330825654,1719845448191,-500.0,0.00015978,2]
[330825655,1719845448201,-500.0,0.00015978,2]
[330825656,1719845448210,-508.01,0.00015978,2]
[330825657,1719845448219,-500.0,0.00015978,2]
[330825658,1719845448229,-952.09,0.00015978,2]
[330825659,1719845448238,-500.0,0.00015978,2]
[330825660,1719845448247,-3641.0,0.00015978,2]
[330825661,1719845448257,-603.8,0.00015978,2]
[330825662,1719845448266,-500.0,0.00015979,2]
[330825663,1719845448276,-500.0,0.00015979,2]
[330825664,1719845448285,-500.0,0.00015979,2]
[330825665,1719845448295,-500.0,0.00015979,2]
[330825666,1719845448304,-500.0,0.00015979,2]
[330825667,1719845448313,-500.0,0.00015979,2]
[330825668,1719845448322,-500.0,0.00015979,2]
[330825669,1719845448332,-637.64,0.00015979,2]
[330825670,1719845448342,-500.0,0.00015979,2]
[330825671,1719845448352,-500.0,0.00015979,2]
[330825672,1719845448361,-1536.64,0.00015979,2]
[330825673,1719845448371,-500.0,0.00015979,2]
[330825674,1719845448380,-500.0,0.00015979,2]
[330825675,1719845448389,-500.0,0.00015979,2]
[330825676,1719845448402,-789.87,0.00015979,2]
[330825677,1719845448411,-500.0,0.00015979,2]